fUST/lending_fUST_20250220
["ID","MTS","AMOUNT","RATE_DAILY","PERIOD"]
[353730603,1739999443944,-680.44,0.00014109,2]
[353730604,1739999443954,-500.0,0.00014109,2]
[353730607,1739999443964,-500.0,0.00014109,2]
[353730609,1739999443977,-500.0,0.00014109,2]
[353730611,1739999443986,-500.0,0.00014109,2]
[353730613,1739999443996,-701.69,0.00014109,2]
[353730615,1739999444007,-500.0,0.00014109,2]
[353730617,1739999444017,-500.0,0.00014109,2]
[353730619,1739999444026,-1416.58,0.00014109,2]
[353730621,1739999444035,-507.0895533,0.00014109,2]
[353730623,1739999444045,-500.0,0.00014109,2]
[353730625,1739999444054,-500.0,0.00014109,2]
[353730627,1739999444065,-882.26,0.00014109,2]
[353730629,1739999444074,-4013.9,0.00014109,2]
[353730631,1739999444084,-451.71,0.00014109,2]
[353730632,1739999444094,-1582.3,0.00014109,2]
[353730634,1739999444104,-776.39,0.00014109,2]
[353730636,1739999444113,-500.0,0.00014109,2]
[353730638,1739999444122,-500.0,0.00014109,2]
[353730640,1739999444132,-500.0,0.00014109,2]
[353730642,1739999444141,-1639.66,0.00014109,2]
[353730644,1739999444152,-1526.88,0.00014109,2]
[353730645,1739999444162,-503.30253068,0.00014109,2]
[353730646,1739999444172,-1005.63,0.00014109,2]
[353730647,1739999444181,-500.0,0.00014109,2]
[353730648,1739999444192,-858.33,0.00014109,2]
[353730649,1739999444203,-500.0,0.00014109,2]
[353730650,1739999444213,-500.0,0.00014109,2]
[353730651,1739999444223,-971.37,0.00014109,2]
[353730652,1739999444233,-596.87,0.00014109,2]
[353730653,1739999444243,-2336.54,0.00014109,2]
[353730654,1739999444253,-1405.18,0.00014109,2]
[353730655,1739999444264,-622.44305527,0.00014109,2]
[353730656,1739999444280,-2341.54,0.00014109,2]
[353730657,1739999444290,-500.0,0.00014109,2]
[353730658,1739999444301,-20331.06,0.00014109,2]
[353730659,1739999444311,-909.57,0.00014109,2]
[353730660,1739999444322,-500.0,0.00014109,2]
[353730661,1739999444332,-799.61,0.00014109,2]
[353730663,1739999444341,-722.94,0.00014109,2]
[353730665,1739999444352,-500.0,0.00014109,2]
[353730667,1739999444362,-929.21,0.00014109,2]
[353730669,1739999444372,-715.3,0.00014109,2]
[353730671,1739999444382,-560.6,0.00014109,2]
[353730673,1739999444391,-1857.67,0.00014109,2]
[353730675,1739999444401,-500.0,0.00014109,2]
[353730677,1739999444411,-857.13,0.0001419,2]
[353730679,1739999444420,-500.0,0.00014191,2]
[353730681,1739999444430,-500.0,0.00014191,2]
[353730683,1739999444440,-500.0,0.00014191,2]
[353730685,1739999444449,-500.0,0.00014191,2]
[353730687,1739999444458,-500.0,0.00014191,2]
[353730689,1739999444467,-500.0,0.00014191,2]
[353730691,1739999444476,-500.0,0.00014191,2]
[353730693,1739999444486,-500.0,0.00014191,2]
[353730695,1739999444495,-500.0,0.00014191,2]
[353730697,1739999444505,-500.0,0.00014191,2]
[353730699,1739999444514,-500.0,0.00014191,2]
[353730701,1739999444524,-500.0,0.00014191,2]
[353730703,1739999444534,-500.0,0.00014191,2]
[353730705,1739999444543,-566.59,0.00014191,2]
[353730707,1739999444553,-500.0,0.00014191,2]
[353730709,1739999444563,-600.21744979,0.00014191,2]
[353730711,1739999444573,-500.0,0.00014191,2]
[353730713,1739999444582,-500.0,0.00014191,2]
[353730715,1739999444592,-500.0,0.00014191,2]
[353730717,1739999444601,-500.0,0.00014191,2]
[353730719,1739999444611,-6868.74,0.00014191,2]
[353730721,1739999444621,-500.0,0.00014191,2]
[353730723,1739999444630,-667.9,0.00014191,2]
[353730725,1739999444640,-2096.92,0.00014191,2]
[353730727,1739999444651,-500.0,0.00014191,2]
[353730729,1739999444660,-641.26,0.00014191,2]
[353730731,1739999444670,-830.19,0.00014191,2]
[353730733,1739999444679,-680.44,0.00014191,2]
[353730735,1739999444689,-500.0,0.00014191,2]
[353730737,1739999444699,-500.0,0.00014191,2]
[353730739,1739999444709,-500.0,0.00014191,2]
[353730741,1739999444719,-500.0,0.00014191,2]
[353730743,1739999444729,-701.69,0.00014191,2]
[353730745,1739999444739,-500.0,0.00014191,2]
[353730747,1739999444749,-500.0,0.00014191,2]
[353730749,1739999444759,-1416.58,0.00014191,2]
[353730751,1739999444769,-500.0,0.00014191,2]
[353730753,1739999444779,-500.0,0.00014191,2]
[353730755,1739999444788,-882.26,0.00014191,2]
[353730757,1739999444798,-4013.9,0.00014191,2]
[353730759,1739999444808,-1582.3,0.00014191,2]
[353730761,1739999444819,-776.39,0.00014191,2]
[353730763,1739999444829,-500.0,0.00014191,2]
[353730765,1739999444839,-500.0,0.00014191,2]
[353730767,1739999444849,-500.0,0.00014191,2]
[353730769,1739999444859,-1639.66,0.00014191,2]
[353730771,1739999444869,-1526.88,0.00014191,2]
[353730773,1739999444879,-1005.63,0.00014191,2]
[353730775,1739999444889,-500.0,0.00014191,2]
[353730777,1739999444899,-858.33,0.00014191,2]
[353730779,1739999444909,-500.0,0.00014191,2]
[353730781,1739999444918,-500.0,0.00014191,2]
[353730783,1739999444928,-971.37,0.00014191,2]
[353730785,1739999444938,-596.87,0.00014191,2]
[353730787,1739999444947,-2336.54,0.00014191,2]
[353730789,1739999444957,-1405.18,0.00014191,2]
[353730791,1739999444968,-500.0,0.00014191,2]
[353730793,1739999444978,-2341.54,0.00014191,2]
[353730795,1739999444988,-20331.06,0.00014191,2]
[353730797,1739999444998,-909.57,0.00014191,2]
[353730799,1739999445008,-500.0,0.00014191,2]
[353730801,1739999445017,-799.61,0.00014191,2]
[353730803,1739999445027,-722.94,0.00014191,2]
[353730805,1739999445037,-500.0,0.00014191,2]
[353730807,1739999445047,-929.21,0.00014191,2]
[353730810,1739999445056,-715.3,0.00014191,2]
[353730812,1739999445066,-560.6,0.00014191,2]
[353730814,1739999445075,-1857.67,0.00014191,2]
[353730816,1739999445084,-500.0,0.00014191,2]
[353730818,1739999445094,-151.0,0.000142,2]
[353730820,1739999445105,-1000.0,0.00014221,2]
[353730822,1739999445115,-500.0,0.00014247,2]
[353730824,1739999445125,-1120.28347369,0.00014256,2]
[353730826,1739999445135,-857.13,0.00014272,2]
[353730828,1739999445144,-500.0,0.00014273,2]
[353730830,1739999445154,-500.0,0.00014273,2]
[353730832,1739999445164,-500.0,0.00014273,2]
[353730834,1739999445173,-500.0,0.00014273,2]
[353730836,1739999445183,-500.0,0.00014273,2]
[353730838,1739999445193,-500.0,0.00014273,2]
[353730840,1739999445203,-500.0,0.00014273,2]
[353730842,1739999445212,-376.18717615,0.00014273,2]
[353730844,1739999445221,-500.0,0.00014273,2]
[353730846,1739999445231,-500.0,0.00014273,2]
[353730848,1739999445241,-500.0,0.00014273,2]
[353730850,1739999445251,-500.0,0.00014273,2]
[353730852,1739999445264,-566.59,0.00014273,2]
[353730854,1739999445274,-500.0,0.00014273,2]
[353730856,1739999445284,-500.0,0.00014273,2]
[353730858,1739999445294,-500.0,0.00014273,2]
[353730860,1739999445303,-500.0,0.00014273,2]
[353730862,1739999445314,-500.0,0.00014273,2]
[353730864,1739999445324,-6868.74,0.00014273,2]
[353730866,1739999445333,-500.0,0.00014273,2]
[353730868,1739999445344,-667.9,0.00014273,2]
[353730882,1739999445472,-2096.92,0.00014273,2]
[353730884,1739999445483,-500.0,0.00014273,2]
[353730886,1739999445493,-641.26,0.00014273,2]
[353730888,1739999445503,-830.19,0.00014273,2]
[353730890,1739999445513,-680.44,0.00014273,2]
[353730892,1739999445523,-500.0,0.00014273,2]
[353730894,1739999445533,-500.0,0.00014273,2]
[353730896,1739999445543,-500.0,0.00014273,2]
[353730898,1739999445553,-500.0,0.00014273,2]
[353730900,1739999445563,-701.69,0.00014273,2]
[353730902,1739999445573,-500.0,0.00014273,2]
[353730904,1739999445583,-500.0,0.00014273,2]
[353730907,1739999445593,-1416.58,0.00014273,2]
[353730909,1739999445603,-500.0,0.00014273,2]
[353730911,1739999445613,-500.0,0.00014273,2]
[353730913,1739999445623,-4013.9,0.00014273,2]
[353730915,1739999445633,-882.26,0.00014273,2]
[353730917,1739999445642,-1582.3,0.00014273,2]
[353730919,1739999445654,-776.39,0.00014273,2]
[353730921,1739999445664,-500.0,0.00014273,2]
[353730923,1739999445674,-500.0,0.00014273,2]
[353730925,1739999445684,-500.0,0.00014273,2]
[353730927,1739999445694,-1526.88,0.00014273,2]
[353730929,1739999445702,-1639.66,0.00014273,2]
[353730931,1739999445713,-1005.63,0.00014273,2]
[353730934,1739999445723,-461.14,0.00014273,2]
[353730935,1739999445732,-858.33,0.00014273,2]
[353730938,1739999445743,-500.0,0.00014273,2]
[353730940,1739999445752,-500.0,0.00014273,2]
[353730941,1739999445763,-971.37,0.00014273,2]
[353730944,1739999445773,-596.87,0.00014273,2]
[353730945,1739999445783,-2336.54,0.00014273,2]
[353730947,1739999445793,-1405.18,0.00014273,2]
[353730949,1739999445803,-500.0,0.00014273,2]
[353730951,1739999445813,-2341.54,0.00014273,2]
[353730953,1739999445823,-20331.06,0.00014273,2]
[353730955,1739999445833,-909.57,0.00014273,2]
[353730957,1739999445843,-500.0,0.00014273,2]
[353730959,1739999445853,-799.61,0.00014273,2]
[353730961,1739999445862,-722.94,0.00014273,2]
[353730963,1739999445873,-500.0,0.00014273,2]
[353730965,1739999445883,-929.21,0.00014273,2]
[353730967,1739999445893,-715.3,0.00014273,2]
[353730969,1739999445905,-560.6,0.00014273,2]
[353730971,1739999445916,-1857.67,0.00014273,2]
[353730973,1739999445926,-500.0,0.00014273,2]
[353730976,1739999445940,-151.0,0.000143,2]
[353730978,1739999445950,-857.13,0.00014355,2]
[353730980,1739999445960,-857.13,0.00014355,2]
[353730982,1739999445972,-857.13,0.00014355,2]
[353730983,1739999445982,-857.13,0.00014355,2]
[353730985,1739999445992,-857.14081009,0.00014355,2]
[353730988,1739999446002,-500.0,0.00014356,2]
[353730990,1739999446013,-500.0,0.00014356,2]
[353730992,1739999446024,-500.0,0.00014356,2]
[353730994,1739999446034,-500.0,0.00014356,2]
[353730996,1739999446043,-500.0,0.00014356,2]
[353730998,1739999446054,-500.0,0.00014356,2]
[353731000,1739999446064,-500.0,0.00014356,2]
[353731002,1739999446076,-500.0,0.00014356,2]
[353731004,1739999446086,-500.0,0.00014356,2]
[353731006,1739999446095,-500.0,0.00014356,2]
[353731008,1739999446105,-500.0,0.00014356,2]
[353731010,1739999446115,-566.59,0.00014356,2]
[353731011,1739999446125,-500.0,0.00014356,2]
[353731013,1739999446134,-500.0,0.00014356,2]
[353731015,1739999446144,-500.0,0.00014356,2]
[353731017,1739999446155,-500.0,0.00014356,2]
[353731019,1739999446165,-500.0,0.00014356,2]
[353731021,1739999446175,-6868.74,0.00014356,2]
[353731023,1739999446185,-500.0,0.00014356,2]
[353731026,1739999446195,-667.9,0.00014356,2]
[353731028,1739999446205,-2096.92,0.00014356,2]
[353731030,1739999446214,-500.0,0.00014356,2]
[353731032,1739999446224,-641.26,0.00014356,2]
[353731034,1739999446234,-830.19,0.00014356,2]
[353731036,1739999446244,-680.44,0.00014356,2]
[353731038,1739999446253,-363.59703576,0.00014356,2]
[353731040,1739999446263,-500.0,0.00014356,2]
[353731042,1739999446277,-500.0,0.00014356,2]
[353731044,1739999446287,-500.0,0.00014356,2]
[353731046,1739999446297,-701.69,0.00014356,2]
[353731048,1739999446306,-500.0,0.00014356,2]
[353731050,1739999446317,-500.0,0.00014356,2]
[353731053,1739999446327,-1416.58,0.00014356,2]
[353731055,1739999446337,-500.0,0.00014356,2]
[353731056,1739999446348,-500.0,0.00014356,2]
[353731058,1739999446359,-4013.9,0.00014356,2]
[353731059,1739999446368,-882.26,0.00014356,2]
[353731060,1739999446379,-1582.3,0.00014356,2]
[353731061,1739999446388,-776.39,0.00014356,2]
[353731062,1739999446398,-500.0,0.00014356,2]
[353731063,1739999446409,-500.0,0.00014356,2]
[353731064,1739999446419,-500.0,0.00014356,2]
[353731065,1739999446429,-1639.66,0.00014356,2]
[353731066,1739999446439,-1526.88,0.00014356,2]
[353731067,1739999446448,-1005.63,0.00014356,2]
[353731068,1739999446459,-858.33,0.00014356,2]
[353731069,1739999446468,-500.0,0.00014356,2]
[353731070,1739999446478,-500.0,0.00014356,2]
[353731071,1739999446487,-596.87,0.00014356,2]
[353731072,1739999446497,-971.37,0.00014356,2]
[353731073,1739999446507,-2336.54,0.00014356,2]
[353731074,1739999446516,-1405.18,0.00014356,2]
[353731075,1739999446526,-548.98622033,0.00014356,2]
[353731076,1739999446535,-2341.54,0.00014356,2]
[353731077,1739999446545,-20331.06,0.00014356,2]
[353731078,1739999446555,-909.57,0.00014356,2]
[353731080,1739999446565,-500.0,0.00014356,2]
[353731082,1739999446575,-799.61,0.00014356,2]
[353731083,1739999446584,-722.94,0.00014356,2]
[353731084,1739999446594,-500.0,0.00014356,2]
[353731085,1739999446604,-929.21,0.00014356,2]
[353731086,1739999446613,-715.3,0.00014356,2]
[353731087,1739999446623,-560.6,0.00014356,2]
[353731089,1739999446633,-1857.67,0.00014356,2]
[353731091,1739999446642,-252.32,0.00014356,2]
[353731093,1739999446653,-179.67658215,0.000144,2]
[353731095,1739999446662,-358.74,0.00014438,2]
[353731097,1739999446672,-500.0,0.00014438,2]
[353731099,1739999446681,-500.0,0.00014438,2]
[353731101,1739999446691,-500.0,0.00014438,2]
[353731103,1739999446700,-500.0,0.00014438,2]
[353731105,1739999446709,-500.0,0.00014438,2]
[353731107,1739999446719,-500.0,0.00014438,2]
[353731109,1739999446728,-500.0,0.00014438,2]
[353731111,1739999446737,-500.0,0.00014438,2]
[353731113,1739999446747,-500.0,0.00014438,2]
[353731115,1739999446756,-500.0,0.00014438,2]
[353731117,1739999446765,-566.59,0.00014438,2]
[353731119,1739999446774,-500.0,0.00014438,2]
[353731121,1739999446783,-626.62987979,0.00014438,2]
[353731123,1739999446794,-500.0,0.00014438,2]
[353731125,1739999446803,-500.0,0.00014438,2]
[353731127,1739999446813,-500.0,0.00014438,2]
[353731130,1739999446822,-6868.74,0.00014438,2]
[353731131,1739999446832,-500.0,0.00014438,2]
[353731133,1739999446841,-667.9,0.00014438,2]
[353731136,1739999446851,-2096.92,0.00014438,2]
[353731138,1739999446861,-547.17,0.00014438,2]
[353731140,1739999446870,-641.26,0.00014438,2]
[353731142,1739999446880,-830.19,0.00014438,2]
[353731144,1739999446889,-680.44,0.00014438,2]
[353731146,1739999446899,-500.0,0.00014438,2]
[353731148,1739999446908,-500.0,0.00014438,2]
[353731150,1739999446917,-500.0,0.00014438,2]
[353731152,1739999446926,-701.69,0.00014438,2]
[353731154,1739999446935,-500.0,0.00014438,2]
[353731156,1739999446944,-500.0,0.00014438,2]
[353731158,1739999446954,-1416.58,0.00014438,2]
[353731160,1739999446963,-629.84909676,0.00014438,2]
[353731162,1739999446974,-462.96,0.00014438,2]
[353731164,1739999446985,-4013.9,0.00014438,2]
[353731166,1739999446994,-882.26,0.00014438,2]
[353731168,1739999447003,-1582.3,0.00014438,2]
[353731170,1739999447013,-776.39,0.00014438,2]
[353731172,1739999447023,-500.0,0.00014438,2]
[353731174,1739999447032,-500.0,0.00014438,2]
[353731176,1739999447041,-500.0,0.00014438,2]
[353731178,1739999447051,-1526.88,0.00014438,2]
[353731180,1739999447060,-1639.66,0.00014438,2]
[353731182,1739999447069,-1005.63,0.00014438,2]
[353731184,1739999447079,-858.33,0.00014438,2]
[353731186,1739999447089,-500.0,0.00014438,2]
[353731188,1739999447099,-500.0,0.00014438,2]
[353731190,1739999447108,-596.87,0.00014438,2]
[353731192,1739999447118,-971.37,0.00014438,2]
[353731194,1739999447127,-2336.54,0.00014438,2]
[353731196,1739999447138,-1405.18,0.00014438,2]
[353731198,1739999447147,-2341.54,0.00014438,2]
[353731200,1739999447158,-20331.06,0.00014438,2]
[353731202,1739999447167,-909.57,0.00014438,2]
[353731204,1739999447177,-500.0,0.00014438,2]
[353731206,1739999447186,-799.61,0.00014438,2]
[353731208,1739999447196,-722.94,0.00014438,2]
[353731210,1739999447206,-500.0,0.00014438,2]
[353731212,1739999447215,-929.21,0.00014438,2]
[353731214,1739999447225,-715.3,0.00014438,2]
[353731216,1739999447235,-560.6,0.00014438,2]
[353731218,1739999447244,-1857.67,0.00014438,2]
[353731220,1739999447253,-7438.69753278,0.00014472,2]
[353731222,1739999447264,-500.0,0.0001452,2]
[353731224,1739999447275,-500.0,0.0001452,2]
[353731226,1739999447284,-500.0,0.0001452,2]
[353731228,1739999447294,-500.0,0.0001452,2]
[353731230,1739999447304,-500.0,0.0001452,2]
[353731232,1739999447313,-500.0,0.0001452,2]
[353731234,1739999447327,-500.0,0.0001452,2]
[353731236,1739999447337,-500.0,0.0001452,2]
[353731238,1739999447346,-500.0,0.0001452,2]
[353731240,1739999447356,-500.0,0.0001452,2]
[353731242,1739999447365,-566.59,0.0001452,2]
[353731244,1739999447375,-500.0,0.0001452,2]
[353731246,1739999447384,-500.0,0.0001452,2]
[353731248,1739999447394,-500.0,0.0001452,2]
[353731250,1739999447403,-500.0,0.0001452,2]
[353731252,1739999447412,-6868.74,0.0001452,2]
[353731254,1739999447421,-500.0,0.0001452,2]
[353731255,1739999447431,-667.9,0.0001452,2]
[353731258,1739999447441,-2096.92,0.0001452,2]
[353731260,1739999447451,-641.26,0.0001452,2]
[353731262,1739999447461,-830.19,0.0001452,2]
[353731264,1739999447471,-680.44,0.0001452,2]
[353731266,1739999447480,-500.0,0.0001452,2]
[353731268,1739999447489,-500.0,0.0001452,2]
[353731269,1739999447499,-500.0,0.0001452,2]
[353731271,1739999447509,-701.69,0.0001452,2]
[353731273,1739999447519,-500.0,0.0001452,2]
[353731275,1739999447528,-500.0,0.0001452,2]
[353731277,1739999447537,-1416.58,0.0001452,2]
[353731279,1739999447548,-4013.9,0.0001452,2]
[353731281,1739999447557,-882.26,0.0001452,2]
[353731283,1739999447567,-1582.3,0.0001452,2]
[353731285,1739999447577,-776.39,0.0001452,2]
[353731287,1739999447587,-500.0,0.0001452,2]
[353731289,1739999447596,-500.0,0.0001452,2]
[353731291,1739999447606,-500.0,0.0001452,2]
[353731293,1739999447616,-1526.88,0.0001452,2]
[353731295,1739999447626,-1639.66,0.0001452,2]
[353731297,1739999447637,-1005.63,0.0001452,2]
[353731299,1739999447647,-858.33,0.0001452,2]
[353731301,1739999447657,-500.0,0.0001452,2]
[353731303,1739999447667,-500.0,0.0001452,2]
[353731305,1739999447677,-596.87,0.0001452,2]
[353731307,1739999447687,-971.37,0.0001452,2]
[353731309,1739999447697,-2336.54,0.0001452,2]
[353731310,1739999447706,-1405.18,0.0001452,2]
[353731312,1739999447715,-2341.54,0.0001452,2]
[353731314,1739999447725,-20331.06,0.0001452,2]
[353731316,1739999447734,-909.57,0.0001452,2]
[353731318,1739999447744,-500.0,0.0001452,2]
[353731320,1739999447754,-799.61,0.0001452,2]
[353731322,1739999447764,-722.94,0.0001452,2]
[353731324,1739999447774,-500.0,0.0001452,2]
[353731326,1739999447783,-929.21,0.0001452,2]
[353731328,1739999447793,-715.3,0.0001452,2]
[353731330,1739999447803,-560.6,0.0001452,2]
[353731332,1739999447812,-1857.67,0.0001452,2]
[353731334,1739999447822,-500.0,0.00014602,2]
[353731336,1739999447831,-500.0,0.00014602,2]
[353731338,1739999447841,-500.0,0.00014602,2]
[353731340,1739999447850,-500.0,0.00014602,2]
[353731342,1739999447859,-500.0,0.00014602,2]
[353731344,1739999447869,-500.0,0.00014602,2]
[353731346,1739999447879,-500.0,0.00014602,2]
[353731348,1739999447888,-500.0,0.00014602,2]
[353731350,1739999447898,-500.0,0.00014602,2]
[353731351,1739999447907,-500.0,0.00014602,2]
[353731353,1739999447917,-566.59,0.00014602,2]
[353731355,1739999447926,-500.0,0.00014602,2]
[353731357,1739999447936,-500.0,0.00014602,2]
[353731359,1739999447945,-500.0,0.00014602,2]
[353731361,1739999447954,-500.0,0.00014602,2]
[353731363,1739999447964,-6868.74,0.00014602,2]
[353731365,1739999447974,-500.0,0.00014602,2]
[353731367,1739999447983,-667.9,0.00014602,2]
[353731369,1739999447992,-2096.92,0.00014602,2]
[353731371,1739999448002,-641.26,0.00014602,2]
[353731373,1739999448012,-830.19,0.00014602,2]
[353731375,1739999448021,-680.44,0.00014602,2]
[353731377,1739999448030,-500.0,0.00014602,2]
[353731379,1739999448039,-500.0,0.00014602,2]
[353731381,1739999448048,-500.0,0.00014602,2]
[353731383,1739999448058,-701.69,0.00014602,2]
[353731385,1739999448068,-500.0,0.00014602,2]
[353731387,1739999448077,-500.0,0.00014602,2]
[353731389,1739999448086,-1416.58,0.00014602,2]
[353731391,1739999448095,-4013.9,0.00014602,2]
[353731392,1739999448105,-882.26,0.00014602,2]
[353731394,1739999448115,-1582.3,0.00014602,2]
[353731396,1739999448125,-776.39,0.00014602,2]
[353731398,1739999448134,-500.0,0.00014602,2]
[353731400,1739999448144,-500.0,0.00014602,2]
[353731402,1739999448154,-500.0,0.00014602,2]
[353731404,1739999448163,-1639.66,0.00014602,2]
[353731406,1739999448172,-1526.88,0.00014602,2]
[353731408,1739999448182,-1005.63,0.00014602,2]
[353731410,1739999448191,-500.0,0.00014602,2]
[353731412,1739999448201,-858.33,0.00014602,2]
[353731414,1739999448210,-500.0,0.00014602,2]
[353731416,1739999448220,-596.87,0.00014602,2]
[353731418,1739999448230,-971.37,0.00014602,2]
[353731419,1739999448239,-2336.54,0.00014602,2]
[353731421,1739999448249,-1405.18,0.00014602,2]
[353731423,1739999448258,-2341.54,0.00014602,2]
[353731425,1739999448269,-20331.06,0.00014602,2]
[353731427,1739999448280,-500.0,0.00014602,2]
[353731429,1739999448289,-909.57,0.00014602,2]
[353731431,1739999448299,-799.61,0.00014602,2]
[353731433,1739999448311,-722.94,0.00014602,2]
[353731435,1739999448320,-391.20026402,0.00014602,2]
[353731437,1739999448330,-929.21,0.00014602,2]
[353731439,1739999448339,-715.3,0.00014602,2]
[353731441,1739999448349,-560.6,0.00014602,2]
[353731443,1739999448359,-1857.67,0.00014602,2]
[353731445,1739999448368,-466.97427313,0.00014626,2]
[353731446,1739999448377,-500.0,0.00014684,2]
[353731448,1739999448387,-500.0,0.00014684,2]
[353731450,1739999448396,-500.0,0.00014684,2]
[353731452,1739999448407,-500.0,0.00014684,2]
[353731454,1739999448416,-500.0,0.00014684,2]
[353731456,1739999448425,-500.0,0.00014684,2]
[353731458,1739999448438,-500.0,0.00014684,2]
[353731460,1739999448448,-500.0,0.00014684,2]
[353731462,1739999448459,-500.0,0.00014684,2]
[353731464,1739999448471,-500.0,0.00014684,2]
[353731465,1739999448482,-566.59,0.00014684,2]
[353731467,1739999448495,-647.51481865,0.00014684,2]
[353731479,1739999448619,-500.0,0.00014684,2]
[353731481,1739999448629,-500.0,0.00014684,2]
[353731483,1739999448639,-500.0,0.00014684,2]
[353731485,1739999448649,-6868.74,0.00014684,2]
[353731487,1739999448659,-500.0,0.00014684,2]
[353731489,1739999448669,-667.9,0.00014684,2]
[353731491,1739999448678,-2096.92,0.00014684,2]
[353731493,1739999448688,-641.26,0.00014684,2]
[353731495,1739999448697,-830.19,0.00014684,2]
[353731496,1739999448709,-680.44,0.00014684,2]
[353731498,1739999448718,-500.0,0.00014684,2]
[353731500,1739999448728,-500.0,0.00014684,2]
[353731502,1739999448737,-500.0,0.00014684,2]
[353731503,1739999448747,-701.69,0.00014684,2]
[353731505,1739999448756,-500.0,0.00014684,2]
[353731507,1739999448765,-500.0,0.00014684,2]
[353731509,1739999448775,-1416.58,0.00014684,2]
[353731511,1739999448784,-4013.9,0.00014684,2]
[353731512,1739999448793,-882.26,0.00014684,2]
[353731514,1739999448803,-1582.3,0.00014684,2]
[353731516,1739999448812,-776.39,0.00014684,2]
[353731518,1739999448822,-500.0,0.00014684,2]
[353731520,1739999448832,-500.0,0.00014684,2]
[353731521,1739999448842,-500.0,0.00014684,2]
[353731523,1739999448851,-1639.66,0.00014684,2]
[353731525,1739999448860,-1526.88,0.00014684,2]
[353731527,1739999448871,-1005.63,0.00014684,2]
[353731528,1739999448881,-500.0,0.00014684,2]
[353731530,1739999448891,-858.33,0.00014684,2]
[353731532,1739999448901,-500.0,0.00014684,2]
[353731534,1739999448911,-596.87,0.00014684,2]
[353731536,1739999448921,-971.37,0.00014684,2]
[353731538,1739999448931,-2336.54,0.00014684,2]
[353731540,1739999448940,-1405.18,0.00014684,2]
[353731541,1739999448950,-2341.54,0.00014684,2]
[353731543,1739999448960,-20331.06,0.00014684,2]
[353731545,1739999448969,-500.0,0.00014684,2]
[353731547,1739999448979,-909.57,0.00014684,2]
[353731549,1739999448990,-799.61,0.00014684,2]
[353731550,1739999449000,-722.94,0.00014684,2]
[353731552,1739999449010,-929.21,0.00014684,2]
[353731554,1739999449019,-715.3,0.00014684,2]
[353731556,1739999449030,-560.6,0.00014684,2]
[353731557,1739999449039,-1857.67,0.00014684,2]
[353731559,1739999449049,-151.0,0.000147,2]
[353731561,1739999449059,-722.128,0.0001475,2]
[353731563,1739999449068,-500.0,0.00014767,2]
[353731565,1739999449078,-500.0,0.00014767,2]
[353731566,1739999449088,-500.0,0.00014767,2]
[353731568,1739999449099,-446.50592814,0.00014767,2]